[Event "Titled Tuesday Blitz April 18 Late 2023"]
[White "Ambartsumova, Karina"]
[Black "Onslow, Alfie"]
[WhiteFideId "4166299"]
[BlackFideId "436976"]
[WhiteElo "2240"]
[BlackElo "2114"]
[Result "1-0"]
[Round "01"]
[TimeControl "180+2"]
[Date "2023.04.18"]
[WhiteClock "0:00:15"]
[BlackClock "0:00:01"]

1. e4 {[%clk 0:02:59]}  g6 {[%clk 0:02:57]} 2. d4 {[%clk 0:02:58]}  Bg7 {[%clk 0:02:50]} 3. Nc3 {[%clk 0:02:59]}  c6 {[%clk 0:02:50]} 4. h3 {[%clk 0:02:57]}  d5 {[%clk 0:02:50]} 5. e5 {[%clk 0:02:55]}  h5 {[%clk 0:02:49]} 6. Nf3 {[%clk 0:02:50]}  Nh6 {[%clk 0:02:49]} 7. Bg5 {[%clk 0:02:49]}  Qb6 {[%clk 0:02:42]} 8. a3 {[%clk 0:02:36]}  Bf5 {[%clk 0:02:32]} 9. Bd3 {[%clk 0:02:24]}  Bxd3 {[%clk 0:02:30]} 10. Qxd3 {[%clk 0:02:24]}  e6 {[%clk 0:02:30]} 11. O-O {[%clk 0:02:19]}  Nd7 {[%clk 0:02:18]} 12. b4 {[%clk 0:02:19]}  a5 {[%clk 0:02:15]} 13. Na4 {[%clk 0:01:59]}  Qb5 {[%clk 0:02:14]} 14. Qxb5 {[%clk 0:01:57]}  cxb5 {[%clk 0:02:15]} 15. Nc3 {[%clk 0:01:57]}  O-O {[%clk 0:02:02]} 16. Nxb5 {[%clk 0:01:57]}  Rfc8 {[%clk 0:02:02]} 17. c3 {[%clk 0:01:45]}  Nb6 {[%clk 0:01:56]} 18. Nd2 {[%clk 0:01:29]}  Na4 {[%clk 0:01:24]} 19. Rfc1 {[%clk 0:01:24]}  Rc6 {[%clk 0:01:23]} 20. Nb3 {[%clk 0:01:10]}  b6 {[%clk 0:01:18]} 21. Bd2 {[%clk 0:01:03]}  Nf5 {[%clk 0:01:11]} 22. Kf1 {[%clk 0:01:01]}  Nb2 {[%clk 0:01:02]} 23. Ke2 {[%clk 0:00:58]}  a4 {[%clk 0:01:00]} 24. Rcb1 {[%clk 0:00:50]}  Nc4 {[%clk 0:00:48]} 25. Nc1 {[%clk 0:00:50]}  f6 {[%clk 0:00:32]} 26. exf6 {[%clk 0:00:47]}  Bxf6 {[%clk 0:00:33]} 27. Nd3 {[%clk 0:00:47]}  Re8 {[%clk 0:00:32]} 28. g4 {[%clk 0:00:47]}  hxg4 {[%clk 0:00:29]} 29. hxg4 {[%clk 0:00:48]}  Nfd6 {[%clk 0:00:29]} 30. Nxd6 {[%clk 0:00:48]}  Rxd6 {[%clk 0:00:24]} 31. f4 {[%clk 0:00:40]}  Kg7 {[%clk 0:00:19]} 32. Rh1 {[%clk 0:00:41]}  Rdd8 {[%clk 0:00:18]} 33. Ne5 {[%clk 0:00:35]}  Bxe5 {[%clk 0:00:16]} 34. fxe5 {[%clk 0:00:36]}  Nxd2 {[%clk 0:00:10]} 35. Kxd2 {[%clk 0:00:37]}  Rf8 {[%clk 0:00:10]} 36. Raf1 {[%clk 0:00:36]}  Rxf1 {[%clk 0:00:10]} 37. Rxf1 {[%clk 0:00:37]}  Rh8 {[%clk 0:00:10]} 38. Rf6 {[%clk 0:00:33]}  Rh2+ {[%clk 0:00:10]} 39. Kd3 {[%clk 0:00:29]}  Rh3+ {[%clk 0:00:10]} 40. Ke2 {[%clk 0:00:28]}  Rh2+ {[%clk 0:00:10]} 41. Rf2 {[%clk 0:00:28]}  Rh3 {[%clk 0:00:09]} 42. Kd2 {[%clk 0:00:25]}  Kh6 {[%clk 0:00:08]} 43. c4 {[%clk 0:00:19]}  Rxa3 {[%clk 0:00:07]} 44. cxd5 {[%clk 0:00:19]}  Ra2+ {[%clk 0:00:03]} 45. Ke3 {[%clk 0:00:15]}  Rxf2 {[%clk 0:00:04]} 46. dxe6 {[%clk 0:00:12]}  Rf8 {[%clk 0:00:02]} 47. d5 {[%clk 0:00:11]}  a3 {[%clk 0:00:02]} 48. e7 {[%clk 0:00:12]}  Ra8 {[%clk 0:00:01]} 49. d6 {[%clk 0:00:13]}  a2 {[%clk 0:00:02]} 50. d7 {[%clk 0:00:14]}  a1=Q {[%clk 0:00:02]} 51. e8=Q {[%clk 0:00:14]}  Qc3+ {[%clk 0:00:03]} 52. Ke4 {[%clk 0:00:15]}  Qc4+ {[%clk 0:00:03]} 53. Kf3 {[%clk 0:00:10]}  Qd3+ {[%clk 0:00:04]} 54. Kf4 {[%clk 0:00:10]}  Qc4+ {[%clk 0:00:04]} 55. Kg3 {[%clk 0:00:10]}  Qc3+ {[%clk 0:00:04]} 56. Kf4 {[%clk 0:00:11]}  Qxb4+ {[%clk 0:00:04]} 57. Ke3 {[%clk 0:00:11]}  Rxe8 {[%clk 0:00:04]} 58. dxe8=Q {[%clk 0:00:11]}  Qc5+ {[%clk 0:00:04]} 59. Ke4 {[%clk 0:00:11]}  Qc4+ {[%clk 0:00:04]} 60. Ke3 {[%clk 0:00:12]}  Qc3+ {[%clk 0:00:05]} 61. Ke4 {[%clk 0:00:12]}  Qc4+ {[%clk 0:00:05]} 62. Kf3 {[%clk 0:00:12]}  Qd3+ {[%clk 0:00:05]} 63. Kf2 {[%clk 0:00:13]}  Qd2+ {[%clk 0:00:05]} 64. Kf3 {[%clk 0:00:13]}  Qd3+ {[%clk 0:00:06]} 65. Kf2 {[%clk 0:00:12]}  Qd4+ {[%clk 0:00:05]} 66. Kf1 {[%clk 0:00:13]}  Qf4+ {[%clk 0:00:05]} 67. Ke1 {[%clk 0:00:12]}  Qe3+ {[%clk 0:00:05]} 68. Kd1 {[%clk 0:00:12]}  Qd3+ {[%clk 0:00:05]} 69. Kc1 {[%clk 0:00:12]}  Qc3+ {[%clk 0:00:05]} 70. Kb1 {[%clk 0:00:13]}  Qb4+ {[%clk 0:00:05]} 71. Ka2 {[%clk 0:00:13]}  Qc4+ {[%clk 0:00:05]} 72. Ka3 {[%clk 0:00:13]}  Qc3+ {[%clk 0:00:03]} 73. Ka4 {[%clk 0:00:13]}  Qc4+ {[%clk 0:00:03]} 74. Ka3 {[%clk 0:00:13]}  Qd3+ {[%clk 0:00:03]} 75. Kb2 {[%clk 0:00:14]}  Qd2+ {[%clk 0:00:03]} 76. Kb3 {[%clk 0:00:14]}  Qd3+ {[%clk 0:00:03]} 77. Kb4 {[%clk 0:00:14]}  Qd4+ {[%clk 0:00:03]} 78. Kb5 {[%clk 0:00:15]}  Qc5+ {[%clk 0:00:03]} 79. Ka6 {[%clk 0:00:15]}  Qa5+ {[%clk 0:00:01]} 80. Kb7 {[%clk 0:00:15]} 1-0


[Site "https://www.chess.com"]

[Event "Titled Tuesday Blitz April 18 Late 2023"]
[White "Srinath, Rao S.V."]
[Black "Boder, Jan"]
[WhiteFideId "5028876"]
[BlackFideId "16243226"]
[WhiteElo "2196"]
[BlackElo "2241"]
[Result "0-1"]
[Round "01"]
[TimeControl "180+2"]
[Date "2023.04.18"]
[WhiteClock "0:00:03"]
[BlackClock "0:00:03"]

1. d4 {[%clk 0:03:00]}  Nf6 {[%clk 0:02:57]} 2. c4 {[%clk 0:03:00]}  c5 {[%clk 0:02:57]} 3. e3 {[%clk 0:02:54]}  g6 {[%clk 0:02:56]} 4. Nf3 {[%clk 0:02:54]}  Bg7 {[%clk 0:02:53]} 5. Be2 {[%clk 0:02:55]}  cxd4 {[%clk 0:02:53]} 6. exd4 {[%clk 0:02:54]}  d5 {[%clk 0:02:54]} 7. c5 {[%clk 0:02:53]}  O-O {[%clk 0:02:52]} 8. O-O {[%clk 0:02:51]}  b6 {[%clk 0:02:52]} 9. cxb6 {[%clk 0:02:47]}  Qxb6 {[%clk 0:02:50]} 10. Nc3 {[%clk 0:02:47]}  Nc6 {[%clk 0:02:50]} 11. Na4 {[%clk 0:02:42]}  Qc7 {[%clk 0:02:40]} 12. Bg5 {[%clk 0:02:38]}  Ne4 {[%clk 0:02:28]} 13. Bh4 {[%clk 0:02:28]}  Qa5 {[%clk 0:01:59]} 14. Rc1 {[%clk 0:02:24]}  Bd7 {[%clk 0:01:56]} 15. b3 {[%clk 0:01:59]}  e6 {[%clk 0:01:48]} 16. a3 {[%clk 0:01:42]}  Rfc8 {[%clk 0:01:46]} 17. Nc5 {[%clk 0:00:58]}  Nxc5 {[%clk 0:01:45]} 18. Rxc5 {[%clk 0:00:59]}  Qxa3 {[%clk 0:01:32]} 19. Bb5 {[%clk 0:01:00]}  Qb4 {[%clk 0:01:02]} 20. Ba6 {[%clk 0:00:46]}  Rcb8 {[%clk 0:00:41]} 21. Bg3 {[%clk 0:00:44]}  Nxd4 {[%clk 0:00:39]} 22. Rc7 {[%clk 0:00:42]}  Bb5 {[%clk 0:00:29]} 23. Bxb5 {[%clk 0:00:22]}  Rxb5 {[%clk 0:00:30]} 24. Nxd4 {[%clk 0:00:18]}  Qxd4 {[%clk 0:00:31]} 25. Qf3 {[%clk 0:00:18]}  Qf6 {[%clk 0:00:31]} 26. Qd3 {[%clk 0:00:18]}  a6 {[%clk 0:00:15]} 27. h4 {[%clk 0:00:16]}  Rab8 {[%clk 0:00:15]} 28. Ra7 {[%clk 0:00:11]}  Rxb3 {[%clk 0:00:13]} 29. Qxa6 {[%clk 0:00:11]}  Re8 {[%clk 0:00:10]} 30. Qc6 {[%clk 0:00:10]}  Rd8 {[%clk 0:00:04]} 31. Qc7 {[%clk 0:00:09]}  Rxg3 {[%clk 0:00:04]} 32. Qxg3 {[%clk 0:00:08]}  e5 {[%clk 0:00:03]} 33. Rc7 {[%clk 0:00:08]}  d4 {[%clk 0:00:03]} 34. Rd1 {[%clk 0:00:08]}  e4 {[%clk 0:00:03]} 35. Qg5 {[%clk 0:00:07]}  d3 {[%clk 0:00:03]} 36. Qg4 {[%clk 0:00:07]}  Qf5 {[%clk 0:00:03]} 37. Qxf5 {[%clk 0:00:07]}  gxf5 {[%clk 0:00:03]} 38. Rc5 {[%clk 0:00:08]}  f4 {[%clk 0:00:02]} 39. Rc4 {[%clk 0:00:08]}  Re8 {[%clk 0:00:01]} 40. Re1 {[%clk 0:00:05]}  f5 {[%clk 0:00:02]} 41. Rc5 {[%clk 0:00:03]}  d2 {[%clk 0:00:01]} 42. Rd1 {[%clk 0:00:03]}  e3 {[%clk 0:00:02]} 43. fxe3 {[%clk 0:00:03]}  fxe3 {[%clk 0:00:03]} 44. Rxf5 {[%clk 0:00:03]}  e2 {[%clk 0:00:03]} 45. Rff1 {[%clk 0:00:03]}  exd1=Q {[%clk 0:00:02]} 46. Rxd1 {[%clk 0:00:02]}  Re1+ {[%clk 0:00:03]} 47. Kf2 {[%clk 0:00:03]}  Rxd1 {[%clk 0:00:03]} 0-1


[Site "https://www.chess.com"]

[Event "Titled Tuesday Blitz April 18 Late 2023"]
[White "De Souza, Cristiano Gomes"]
[Black "Janaszak, Dawid"]
[WhiteFideId "2151758"]
[BlackFideId "1119206"]
[WhiteElo "2068"]
[BlackElo "2220"]
[Result "0-1"]
[Round "01"]
[TimeControl "180+2"]
[Date "2023.04.18"]
[WhiteClock "0:00:46"]
[BlackClock "0:01:17"]

1. d4 {[%clk 0:02:58]}  Nf6 {[%clk 0:02:59]} 2. c4 {[%clk 0:02:57]}  e6 {[%clk 0:02:59]} 3. Nf3 {[%clk 0:02:57]}  c5 {[%clk 0:02:59]} 4. d5 {[%clk 0:02:57]}  exd5 {[%clk 0:03:00]} 5. cxd5 {[%clk 0:02:57]}  d6 {[%clk 0:03:00]} 6. Nc3 {[%clk 0:02:58]}  g6 {[%clk 0:02:58]} 7. h3 {[%clk 0:02:58]}  Bg7 {[%clk 0:02:58]} 8. e4 {[%clk 0:02:59]}  O-O {[%clk 0:02:57]} 9. Bd3 {[%clk 0:02:58]}  a6 {[%clk 0:02:52]} 10. a4 {[%clk 0:02:51]}  Nbd7 {[%clk 0:02:52]} 11. O-O {[%clk 0:02:49]}  Re8 {[%clk 0:02:51]} 12. Re1 {[%clk 0:02:49]}  Qc7 {[%clk 0:02:43]} 13. Bf4 {[%clk 0:02:47]}  Nh5 {[%clk 0:02:42]} 14. Bh2 {[%clk 0:02:46]}  Ne5 {[%clk 0:02:41]} 15. Be2 {[%clk 0:02:45]}  Qb6 {[%clk 0:02:23]} 16. Rb1 {[%clk 0:02:28]}  Nxf3+ {[%clk 0:02:17]} 17. Bxf3 {[%clk 0:01:57]}  Nf6 {[%clk 0:02:16]} 18. e5 {[%clk 0:01:54]}  dxe5 {[%clk 0:02:16]} 19. Bxe5 {[%clk 0:01:54]}  Bf5 {[%clk 0:02:16]} 20. Bxf6 {[%clk 0:01:35]}  Bxf6 {[%clk 0:02:17]} 21. Ne4 {[%clk 0:01:33]}  Bd4 {[%clk 0:02:17]} 22. Qd2 {[%clk 0:01:30]}  Rad8 {[%clk 0:02:10]} 23. b4 {[%clk 0:01:24]}  Bxe4 {[%clk 0:01:58]} 24. Bxe4 {[%clk 0:01:21]}  Qf6 {[%clk 0:01:57]} 25. bxc5 {[%clk 0:01:18]}  Bc3 {[%clk 0:01:53]} 26. Qc2 {[%clk 0:01:14]}  Bxe1 {[%clk 0:01:52]} 27. Rxe1 {[%clk 0:01:15]}  Rxd5 {[%clk 0:01:50]} 28. Re3 {[%clk 0:01:10]}  Rdd8 {[%clk 0:01:37]} 29. Bxb7 {[%clk 0:01:07]}  Rxe3 {[%clk 0:01:38]} 30. fxe3 {[%clk 0:01:07]}  Qa1+ {[%clk 0:01:37]} 31. Kh2 {[%clk 0:01:06]}  Qe5+ {[%clk 0:01:37]} 32. g3 {[%clk 0:01:05]}  Qxe3 {[%clk 0:01:37]} 33. Bg2 {[%clk 0:01:01]}  Rd3 {[%clk 0:01:34]} 34. g4 {[%clk 0:00:53]}  Rc3 {[%clk 0:01:21]} 35. Qd1 {[%clk 0:00:46]}  Qxc5 {[%clk 0:01:17]} 0-1


[Site "https://www.chess.com"]

[Event "Titled Tuesday Blitz April 18 Late 2023"]
[White "Plotnikov, Pavel"]
[Black "Da Silva Junior, Sediney Mari"]
[WhiteFideId "4170342"]
[BlackFideId "2132079"]
[WhiteElo "2298"]
[BlackElo "1977"]
[Result "1-0"]
[Round "01"]
[TimeControl "180+2"]
[Date "2023.04.18"]
[WhiteClock "0:00:20"]
[BlackClock "0:00:10"]

1. d4 {[%clk 0:02:59]}  Nf6 {[%clk 0:02:58]} 2. c4 {[%clk 0:03:00]}  e6 {[%clk 0:02:58]} 3. Nc3 {[%clk 0:03:00]}  Bb4 {[%clk 0:02:58]} 4. Qc2 {[%clk 0:03:00]}  O-O {[%clk 0:02:58]} 5. e3 {[%clk 0:02:59]}  d5 {[%clk 0:02:57]} 6. Nf3 {[%clk 0:02:56]}  c5 {[%clk 0:02:57]} 7. dxc5 {[%clk 0:02:55]}  Bxc5 {[%clk 0:02:57]} 8. a3 {[%clk 0:02:52]}  a5 {[%clk 0:02:56]} 9. cxd5 {[%clk 0:02:47]}  Nxd5 {[%clk 0:02:56]} 10. Nxd5 {[%clk 0:02:46]}  Qxd5 {[%clk 0:02:56]} 11. Bc4 {[%clk 0:02:46]}  Qh5 {[%clk 0:02:55]} 12. h3 {[%clk 0:02:37]}  b6 {[%clk 0:02:54]} 13. g4 {[%clk 0:02:31]}  Qg6 {[%clk 0:02:49]} 14. Bd3 {[%clk 0:02:31]}  f5 {[%clk 0:02:47]} 15. gxf5 {[%clk 0:02:18]}  exf5 {[%clk 0:02:47]} 16. Rg1 {[%clk 0:02:17]}  Qh5 {[%clk 0:02:32]} 17. Qc3 {[%clk 0:02:03]}  Ra7 {[%clk 0:02:27]} 18. Ng5 {[%clk 0:01:44]}  h6 {[%clk 0:02:08]} 19. Bc4+ {[%clk 0:01:36]}  Kh8 {[%clk 0:02:04]} 20. Ne6 {[%clk 0:01:33]}  Bxe6 {[%clk 0:01:57]} 21. Bxe6 {[%clk 0:01:34]}  f4 {[%clk 0:01:47]} 22. b4 {[%clk 0:01:24]}  fxe3 {[%clk 0:01:44]} 23. Bxe3 {[%clk 0:01:20]}  Bd6 {[%clk 0:01:44]} 24. Bd4 {[%clk 0:01:15]}  Re7 {[%clk 0:00:56]} 25. Bxg7+ {[%clk 0:01:11]}  Kh7 {[%clk 0:00:54]} 26. Qd3+ {[%clk 0:00:50]}  Rf5 {[%clk 0:00:53]} 27. Qxd6 {[%clk 0:00:34]}  Nc6 {[%clk 0:00:40]} 28. Qxc6 {[%clk 0:00:27]}  Re5+ {[%clk 0:00:39]} 29. Bxe5 {[%clk 0:00:26]}  Qxe5+ {[%clk 0:00:40]} 30. Kf1 {[%clk 0:00:25]}  Qxa1+ {[%clk 0:00:40]} 31. Kg2 {[%clk 0:00:21]}  Rg7+ {[%clk 0:00:10]} 32. Bg4 {[%clk 0:00:21]}  axb4 {[%clk 0:00:10]} 33. Rxa1 {[%clk 0:00:20]} 1-0


[Site "https://www.chess.com"]

[Event "Titled Tuesday Blitz April 18 Late 2023"]
[White "Ozates, Tuna"]
[Black "Romero Ruscalleda, Josep"]
[WhiteFideId "6354521"]
[BlackFideId "2231859"]
[WhiteElo "2151"]
[BlackElo "2183"]
[Result "1-0"]
[Round "01"]
[TimeControl "180+2"]
[Date "2023.04.18"]
[WhiteClock "0:00:27"]
[BlackClock "0:00:11"]

1. e4 {[%clk 0:02:49]}  g6 {[%clk 0:03:00]} 2. d4 {[%clk 0:02:47]}  Bg7 {[%clk 0:03:00]} 3. Nc3 {[%clk 0:02:46]}  d6 {[%clk 0:03:00]} 4. f4 {[%clk 0:02:46]}  a6 {[%clk 0:03:00]} 5. Nf3 {[%clk 0:02:46]}  b5 {[%clk 0:02:59]} 6. Bd3 {[%clk 0:02:47]}  Nd7 {[%clk 0:02:58]} 7. Be3 {[%clk 0:02:47]}  Bb7 {[%clk 0:02:57]} 8. Qe2 {[%clk 0:02:47]}  Rc8 {[%clk 0:02:56]} 9. e5 {[%clk 0:02:42]}  Nh6 {[%clk 0:02:50]} 10. Be4 {[%clk 0:02:40]}  Bxe4 {[%clk 0:02:46]} 11. Nxe4 {[%clk 0:02:41]}  Nf5 {[%clk 0:02:39]} 12. Bf2 {[%clk 0:02:22]}  d5 {[%clk 0:02:19]} 13. Nc5 {[%clk 0:02:16]}  Nxc5 {[%clk 0:02:15]} 14. dxc5 {[%clk 0:02:16]}  e6 {[%clk 0:02:14]} 15. O-O-O {[%clk 0:02:11]}  h5 {[%clk 0:02:05]} 16. g3 {[%clk 0:02:10]}  Kd7 {[%clk 0:01:51]} 17. Ng5 {[%clk 0:01:52]}  Qe7 {[%clk 0:01:45]} 18. h3 {[%clk 0:01:49]}  c6 {[%clk 0:01:42]} 19. Ne4 {[%clk 0:01:46]}  Kc7 {[%clk 0:01:40]} 20. Nd6 {[%clk 0:01:47]}  Rcd8 {[%clk 0:01:36]} 21. Qd2 {[%clk 0:01:42]}  Kb8 {[%clk 0:01:34]} 22. Qa5 {[%clk 0:01:36]}  Nxd6 {[%clk 0:01:29]} 23. cxd6 {[%clk 0:01:36]}  Qb7 {[%clk 0:01:29]} 24. Bb6 {[%clk 0:01:31]}  Rd7 {[%clk 0:01:28]} 25. Rd3 {[%clk 0:01:27]}  f6 {[%clk 0:01:16]} 26. Re1 {[%clk 0:01:25]}  fxe5 {[%clk 0:01:15]} 27. fxe5 {[%clk 0:01:26]}  Rf8 {[%clk 0:01:09]} 28. g4 {[%clk 0:01:15]}  hxg4 {[%clk 0:01:05]} 29. hxg4 {[%clk 0:01:16]}  Bh6+ {[%clk 0:00:56]} 30. Kb1 {[%clk 0:01:15]}  Rf4 {[%clk 0:00:48]} 31. Be3 {[%clk 0:01:01]}  Ra4 {[%clk 0:00:44]} 32. Qd2 {[%clk 0:00:58]}  Bxe3 {[%clk 0:00:43]} 33. Qxe3 {[%clk 0:00:59]}  Rxg4 {[%clk 0:00:42]} 34. Qf3 {[%clk 0:00:55]}  Rg5 {[%clk 0:00:36]} 35. Qf6 {[%clk 0:00:54]}  Rg2 {[%clk 0:00:20]} 36. Qxe6 {[%clk 0:00:53]}  Ka7 {[%clk 0:00:19]} 37. a3 {[%clk 0:00:46]}  Rf7 {[%clk 0:00:18]} 38. Qe8 {[%clk 0:00:40]}  Rff2 {[%clk 0:00:17]} 39. Rc3 {[%clk 0:00:35]}  d4 {[%clk 0:00:16]} 40. Rxc6 {[%clk 0:00:35]}  d3 {[%clk 0:00:14]} 41. Rc7 {[%clk 0:00:28]}  Qxc7 {[%clk 0:00:13]} 42. dxc7 {[%clk 0:00:28]}  Rxc2 {[%clk 0:00:11]} 43. Qb8# {[%clk 0:00:27]} 1-0


[Site "https://www.chess.com"]

[Event "Titled Tuesday Blitz April 18 Late 2023"]
[White "Pinheiro, Iung Alicio de O."]
[Black "Ramadoss, Ashokkumar"]
[WhiteFideId "2104350"]
[BlackFideId "5040990"]
[WhiteElo "2283"]
[BlackElo "2226"]
[Result "1-0"]
[Round "01"]
[TimeControl "180+2"]
[Date "2023.04.18"]
[WhiteClock "0:00:35"]
[BlackClock "0:00:23"]

1. e4 {[%clk 0:02:48]}  e6 {[%clk 0:02:59]} 2. d4 {[%clk 0:02:47]}  d5 {[%clk 0:03:00]} 3. e5 {[%clk 0:02:48]}  c5 {[%clk 0:03:00]} 4. c3 {[%clk 0:02:49]}  Qb6 {[%clk 0:02:59]} 5. Nf3 {[%clk 0:02:49]}  Nc6 {[%clk 0:03:00]} 6. Bd3 {[%clk 0:02:49]}  cxd4 {[%clk 0:02:59]} 7. O-O {[%clk 0:02:50]}  Nh6 {[%clk 0:02:58]} 8. h3 {[%clk 0:02:43]}  Bd7 {[%clk 0:02:52]} 9. Re1 {[%clk 0:02:43]}  Nf5 {[%clk 0:02:45]} 10. Nbd2 {[%clk 0:01:33]}  Be7 {[%clk 0:02:42]} 11. Nb3 {[%clk 0:01:30]}  dxc3 {[%clk 0:02:16]} 12. bxc3 {[%clk 0:01:31]}  a5 {[%clk 0:02:15]} 13. Rb1 {[%clk 0:01:31]}  Qc7 {[%clk 0:02:08]} 14. Bxf5 {[%clk 0:01:23]}  exf5 {[%clk 0:02:08]} 15. Nbd4 {[%clk 0:01:19]}  Nxd4 {[%clk 0:01:48]} 16. Nxd4 {[%clk 0:01:17]}  O-O {[%clk 0:01:47]} 17. e6 {[%clk 0:01:13]}  fxe6 {[%clk 0:01:46]} 18. Nxe6 {[%clk 0:01:13]}  Bxe6 {[%clk 0:01:46]} 19. Rxe6 {[%clk 0:01:13]}  Rad8 {[%clk 0:01:31]} 20. Qe2 {[%clk 0:01:04]}  Bc5 {[%clk 0:01:26]} 21. Bg5 {[%clk 0:01:02]}  Rd7 {[%clk 0:01:17]} 22. Qf3 {[%clk 0:00:58]}  b6 {[%clk 0:01:07]} 23. Bf4 {[%clk 0:00:55]}  Qd8 {[%clk 0:01:01]} 24. Rbe1 {[%clk 0:00:51]}  d4 {[%clk 0:01:00]} 25. cxd4 {[%clk 0:00:50]}  Rxd4 {[%clk 0:00:58]} 26. Be5 {[%clk 0:00:46]}  Rd2 {[%clk 0:00:50]} 27. Re2 {[%clk 0:00:42]}  Rd1+ {[%clk 0:00:28]} 28. Kh2 {[%clk 0:00:41]}  Qd5 {[%clk 0:00:29]} 29. Qg3 {[%clk 0:00:37]}  g6 {[%clk 0:00:23]} 30. Rxg6+ {[%clk 0:00:35]} 1-0


[Site "https://www.chess.com"]

[Event "Titled Tuesday Blitz April 18 Late 2023"]
[White "Sariego Figueredo, Wilfredo"]
[Black "Vovk, Orest"]
[WhiteFideId "3500080"]
[BlackFideId "14113490"]
[WhiteElo "2309"]
[BlackElo "2215"]
[Result "0-1"]
[Round "01"]
[TimeControl "180+2"]
[Date "2023.04.18"]
[WhiteClock "0:00:13"]
[BlackClock "0:00:08"]

1. d4 {[%clk 0:03:00]}  h6 {[%clk 0:02:57]} 2. Bf4 {[%clk 0:02:59]}  g5 {[%clk 0:02:56]} 3. Bg3 {[%clk 0:02:59]}  Bg7 {[%clk 0:02:55]} 4. e4 {[%clk 0:02:57]}  c5 {[%clk 0:02:52]} 5. c3 {[%clk 0:02:57]}  Qb6 {[%clk 0:02:51]} 6. Qb3 {[%clk 0:02:55]}  cxd4 {[%clk 0:02:50]} 7. cxd4 {[%clk 0:02:48]}  Qxb3 {[%clk 0:02:41]} 8. axb3 {[%clk 0:02:48]}  Bxd4 {[%clk 0:02:42]} 9. Bxb8 {[%clk 0:02:48]}  Rxb8 {[%clk 0:02:41]} 10. Nc3 {[%clk 0:02:42]}  a6 {[%clk 0:02:28]} 11. Nf3 {[%clk 0:02:39]}  Bg7 {[%clk 0:02:19]} 12. Bc4 {[%clk 0:02:35]}  d6 {[%clk 0:02:18]} 13. O-O {[%clk 0:02:31]}  Nf6 {[%clk 0:02:09]} 14. Rfe1 {[%clk 0:02:30]}  O-O {[%clk 0:02:00]} 15. Nd5 {[%clk 0:02:26]}  Nxd5 {[%clk 0:01:50]} 16. exd5 {[%clk 0:02:24]}  Bxb2 {[%clk 0:01:48]} 17. Ra2 {[%clk 0:02:24]}  Bf6 {[%clk 0:01:48]} 18. Nd2 {[%clk 0:02:16]}  b5 {[%clk 0:01:33]} 19. Bd3 {[%clk 0:02:16]}  Bb7 {[%clk 0:01:33]} 20. Ne4 {[%clk 0:01:58]}  Bxd5 {[%clk 0:01:32]} 21. Nxf6+ {[%clk 0:01:58]}  exf6 {[%clk 0:01:33]} 22. Rxa6 {[%clk 0:01:58]}  Bxb3 {[%clk 0:01:29]} 23. Rxd6 {[%clk 0:01:57]}  Be6 {[%clk 0:01:23]} 24. h3 {[%clk 0:01:46]}  b4 {[%clk 0:01:22]} 25. Rb1 {[%clk 0:01:44]}  Rfd8 {[%clk 0:01:18]} 26. Rxd8+ {[%clk 0:01:29]}  Rxd8 {[%clk 0:01:18]} 27. Bc2 {[%clk 0:01:30]}  Rb8 {[%clk 0:01:15]} 28. Bb3 {[%clk 0:01:29]}  Bxb3 {[%clk 0:01:14]} 29. Rxb3 {[%clk 0:01:30]}  f5 {[%clk 0:01:14]} 30. f4 {[%clk 0:01:27]}  gxf4 {[%clk 0:01:11]} 31. Kf2 {[%clk 0:01:28]}  Kg7 {[%clk 0:01:11]} 32. Kf3 {[%clk 0:01:28]}  Kf6 {[%clk 0:01:10]} 33. Kxf4 {[%clk 0:01:28]}  Ke6 {[%clk 0:01:11]} 34. h4 {[%clk 0:01:21]}  Rb5 {[%clk 0:01:06]} 35. Ke3 {[%clk 0:01:14]}  Kd5 {[%clk 0:01:02]} 36. Kd3 {[%clk 0:01:14]}  f4 {[%clk 0:01:02]} 37. Rb2 {[%clk 0:00:58]}  b3 {[%clk 0:01:01]} 38. Kc3 {[%clk 0:00:56]}  Ke4 {[%clk 0:00:44]} 39. Re2+ {[%clk 0:00:56]}  Kf5 {[%clk 0:00:44]} 40. Kb2 {[%clk 0:00:52]}  Kg4 {[%clk 0:00:44]} 41. Re7 {[%clk 0:00:51]}  Kxh4 {[%clk 0:00:41]} 42. Rxf7 {[%clk 0:00:51]}  Kg3 {[%clk 0:00:39]} 43. Rg7+ {[%clk 0:00:51]}  Kf2 {[%clk 0:00:38]} 44. Rg4 {[%clk 0:00:51]}  Rb4 {[%clk 0:00:36]} 45. Rg6 {[%clk 0:00:47]}  h5 {[%clk 0:00:35]} 46. Rg5 {[%clk 0:00:47]}  h4 {[%clk 0:00:35]} 47. Rg4 {[%clk 0:00:47]}  f3 {[%clk 0:00:28]} 48. Rxb4 {[%clk 0:00:15]}  fxg2 {[%clk 0:00:28]} 49. Rxh4 {[%clk 0:00:15]}  g1=Q {[%clk 0:00:27]} 50. Rf4+ {[%clk 0:00:10]}  Ke3 {[%clk 0:00:20]} 51. Rb4 {[%clk 0:00:10]}  Kd2 {[%clk 0:00:16]} 52. Rd4+ {[%clk 0:00:09]}  Qxd4+ {[%clk 0:00:10]} 53. Kxb3 {[%clk 0:00:10]}  Qc5 {[%clk 0:00:09]} 54. Ka4 {[%clk 0:00:11]}  Qb6 {[%clk 0:00:09]} 55. Ka3 {[%clk 0:00:12]}  Kc3 {[%clk 0:00:09]} 56. Ka2 {[%clk 0:00:13]}  Qb2# {[%clk 0:00:08]} 0-1


[Site "https://www.chess.com"]